[Event "POL-chT 2 Liga 2019"]
[Site "Poronin"]
[Date "2019.09.13"]
[Round "7.31"]
[White "Sieciechowicz, Marcin"]
[Black "Psyk, Radoslaw"]
[Result "1-0"]
[ECO "D86"]
[WhiteElo "2364"]
[BlackElo "2314"]
[Annotator "NA"]
[PlyCount "119"]
[EventDate "2019.09.07"]
[EventType "team-tourn"]
[EventCountry "POL"]
[SourceTitle "playchess.com"]
[Source "ChessBase"]
[SourceQuality "1"]
[TimeControl "40/5400+30:1800+30"]

1. d4 {[%emt 0:00:00]} Nf6 {[%emt 0:00:00]} 2. c4 {[%emt 0:00:00]} g6 {[%emt 0:00:16]} 3. Nc3 {[%emt 0:00:00]} d5 {[%emt 0:01:21]} 4. cxd5 {[%emt 0:00:07]} Nxd5 {[%emt 0:00:06]} 5. e4 {[%emt 0:00:05]} Nxc3 {[%emt 0:00:08]} 6. bxc3 {[%emt 0:00:04]} Bg7 {[%emt 0:00:04]} 7. Bc4 {[%emt 0:00:03]} c5 {[%emt 0:01:25]} 8. Ne2 {[%emt 0:00:03]} Nc6 {[%emt 0:00:12]} 9. Be3 {[%emt 0:00:08]} O-O {[%emt 0:00:47]} 10. O-O {[%emt 0:01:31]} Na5 {[%emt 0:01:41]} 11. Bd3 {[%emt 0:00:02]} b6 {[%emt 0:00:20]} 12. Rc1 {[%emt 0:02:00]} e5 {[%emt 0:01:17]} 13. dxc5 {[%emt 0:00:12]} Be6 {[%emt 0:01:29]} 14. c4 {[%emt 0:00:05]} bxc5 {[%emt 0:00:39]} 15. Bxc5 {[%emt 0:00:02]} Bh6 {[%emt 0:00:21]} 16. Rc3 {[%emt 0:06:48]} Re8 {[%emt 0:00:30]} 17. Qc2 {[%emt 0:04:30]} Qc7 {[%emt 0:00:47]} 18. Ba3 {[%emt 0:01:00]} Red8 {[%emt 0:11:58]} 19. Rb1 {[%emt 0:10:02]} Rab8 {[%emt 0:13:30]} 20. Rxb8 {[%emt 0:18:47]} Qxb8 {[%emt 0:00:56]} 21. h3 {[%emt 0:02:20]} Qc7 {[%emt 0:06:05]} 22. Bc1 {[%emt 0:18:52]} Bxc1 {[%emt 0:11:51]} 23. Qxc1 {[%emt 0:04:42]} Qc5 {[%emt 0:00:42]} 24. Ng3 {[%emt 0:04:23]} Nc6 25. Nf1 {[%emt 0:01:51]} Nb4 {[%emt 0:32:57]} 26. Bb1 {[%emt 0:00:53]} Qa5 {[%emt 0:00:51]} 27. Ra3 {[%emt 0:09:47]} Rd1 {[%emt 0:01:19]} 28. Qxd1 {[%emt 0:00:02]} Qxa3 {[%emt 0:00:07]} 29. Qb3 {[%emt 0:00:51]} Qa5 {[%emt 0:02:50]} 30. Qc3 {[%emt 0:02:03]} Qa4 {[%emt 0:08:10]} 31. Qxe5 {[%emt 0:03:40]} Bxc4 {[%emt 0:00:31]} 32. Ne3 {[%emt 0:00:50]} Be6 {[%emt 0:00:11]} 33. Kh2 {[%emt 0:05:42]} Nc6 {[%emt 0:02:35]} 34. Qc3 {[%emt 0:02:39]} Nd4 {[%emt 0:00:12]} 35. Qd3 {[%emt 0:01:12]} Qb4 {[%emt 0:00:33]} 36. f4 {[%emt 0:01:17]} Qb2 {[%emt 0:00:23]} 37. Nd1 {[%emt 0:00:42]} Qb6 {[%emt 0:00:31]} 38. Nc3 {[%emt 0:00:42]} Qd6 {[%emt 0:00:28]} 39. Ne2 {[%emt 0:00:32]} Qb8 {[%emt 0:00:55]} 40. Nxd4 {[%emt 0:00:00]} Qxf4+ {[%emt 0:00:00]} 41. Qg3 {[%emt 0:00:57]} Qd2 {[%emt 0:01:34]} 42. Qb8+ {[%emt 0:01:04]} Kg7 {[%emt 0:00:01]} 43. Nxe6+ {[%emt 0:00:13]} fxe6 {[%emt 0:00:02]} 44. Qxa7+ {[%emt 0:00:14]} Kh6 {[%emt 0:00:08]} 45. Qb8 {[%emt 0:00:29]} Qc1 {[%emt 0:00:54]} 46. Qb3 {[%emt 0:01:03]} e5 {[%emt 0:02:58]} 47. Qc2 {[%emt 0:00:43]} Qf4+ {[%emt 0:00:18]} 48. g3 {[%emt 0:00:15]} Qe3 {[%emt 0:00:22]} 49. a4 {[%emt 0:00:26]} Qe1 {[%emt 0:00:12]} 50. Qa2 {[%emt 0:01:06]} Kg5 {[%emt 0:00:34]} 51. Bd3 {[%emt 0:01:08]} h5 {[%emt 0:00:28]} 52. h4+ {[%emt 0:00:34]} Kf6 {[%emt 0:00:01]} 53. a5 {[%emt 0:00:57]} g5 {[%emt 0:00:02]} 54. Kg2 {[%emt 0:00:09]} Qc3 {[%emt 0:00:35]} 55. Bf1 {[%emt 0:01:46]} gxh4 {[%emt 0:00:08]} 56. gxh4 {[%emt 0:00:14]} Qb4 {[%emt 0:00:37]} 57. Qe2 {[%emt 0:03:27]} Kg7 {[%emt 0:00:14]} 58. a6 {[%emt 0:00:34]} Kh6 {[%emt 0:00:34]} 59. a7 {[%emt 0:01:08]} Qb3 {[%emt 0:01:55]} 60. Qd2+ {[%emt 0:01:28]} 1-0

[Event "POL-chT 2 Liga 2019"]
[Site "Poronin"]
[Date "2019.09.13"]
[Round "7.33"]
[White "Komendecki, Jacek"]
[Black "Wisniewski, Michal"]
[Result "0-1"]
[ECO "B94"]
[WhiteElo "2073"]
[BlackElo "2130"]
[Annotator "NA"]
[PlyCount "66"]
[EventDate "2019.09.07"]
[EventType "team-tourn"]
[EventCountry "POL"]
[SourceTitle "playchess.com"]
[Source "ChessBase"]
[SourceQuality "1"]
[TimeControl "40/5400+30:1800+30"]

1. e4 {[%emt 0:00:00]} c5 {[%emt 0:00:05]} 2. Nf3 {[%emt 0:00:00]} d6 {[%emt 0:00:11]} 3. d4 {[%emt 0:00:04]} cxd4 {[%emt 0:00:17]} 4. Nxd4 {[%emt 0:00:07]} Nf6 {[%emt 0:00:05]} 5. Nc3 {[%emt 0:00:08]} a6 {[%emt 0:00:03]} 6. Bg5 {[%emt 0:00:19]} Nbd7 {[%emt 0:00:06]} 7. Qf3 {[%emt 0:01:34]} Qc7 {[%emt 0:12:04]} 8. O-O-O {[%emt 0:07:47]} h6 {[%emt 0:05:14]} 9. Bxf6 {[%emt 0:05:07]} Nxf6 {[%emt 0:00:30]} 10. Nd5 {[%emt 0:02:03]} Nxd5 {[%emt 0:01:14]} 11. exd5 {[%emt 0:00:03]} g6 {[%emt 0:00:05]} 12. Bd3 {[%emt 0:12:25]} Bg7 {[%emt 0:00:29]} 13. Ne6 {[%emt 0:09:34]} fxe6 {[%emt 0:01:06]} 14. Bxg6+ {[%emt 0:00:02]} Kd8 {[%emt 0:00:06]} 15. Qf7 {[%emt 0:00:08]} Bf6 {[%emt 0:00:21]} 16. dxe6 {[%emt 0:00:23]} Qb6 {[%emt 0:07:54]} 17. c3 {[%emt 0:04:50]} Kc7 {[%emt 0:00:40]} 18. Rd2 {[%emt 0:01:09]} Rd8 {[%emt 0:02:01]} 19. Be4 {[%emt 0:03:59]} d5 {[%emt 0:01:27]} 20. Bf5 {[%emt 0:08:12]} Rd6 {[%emt 0:02:31]} 21. Re2 {[%emt 0:02:02]} Qb5 {[%emt 0:01:44]} 22. Rc2 {[%emt 0:05:37]} Qc4 {[%emt 0:01:34]} 23. Kb1 {[%emt 0:01:54]} Qf4 {[%emt 0:00:44]} 24. g4 {[%emt 0:01:44]} b5 {[%emt 0:01:37]} 25. h3 {[%emt 0:09:55]} Bb7 {[%emt 0:02:39]} 26. Rd1 {[%emt 0:02:28]} Bc6 {[%emt 0:00:49]} 27. Bh7 {[%emt 0:08:11]} Be8 {[%emt 0:02:15]} 28. Qg8 {[%emt 0:00:10]} Rad8 {[%emt 0:00:14]} 29. Bd3 {[%emt 0:02:06]} Bd7 {[%emt 0:03:17]} 30. Qh7 {[%emt 0:00:34]} Bxe6 {[%emt 0:00:22]} 31. Bf1 {[%emt 0:01:44]} Bg8 {[%emt 0:01:28]} 32. Qd3 {[%emt 0:00:10]} e5 {[%emt 0:01:01]} 33. Qe2 {[%emt 0:02:01]} Bh7 {[%emt 0:00:07]} 0-1

[Event "POL-chT 2 Liga 2019"]
[Site "Poronin"]
[Date "2019.09.13"]
[Round "7.34"]
[White "Adamczewski, Maciej"]
[Black "Kowalak, Piotr"]
[Result "0-1"]
[ECO "E28"]
[WhiteElo "2109"]
[BlackElo "2108"]
[Annotator "NA"]
[PlyCount "128"]
[EventDate "2019.09.07"]
[EventType "team-tourn"]
[EventCountry "POL"]
[SourceTitle "playchess.com"]
[Source "ChessBase"]
[SourceQuality "1"]
[TimeControl "40/5400+30:1800+30"]

1. d4 {[%emt 0:00:00]} Nf6 {[%emt 0:00:00]} 2. c4 {[%emt 0:00:00]} e6 {[%emt 0:00:04]} 3. Nc3 {[%emt 0:00:00]} Bb4 {[%emt 0:00:20]} 4. e3 {[%emt 0:00:01]} O-O {[%emt 0:00:24]} 5. a3 {[%emt 0:00:05]} Bxc3+ {[%emt 0:00:27]} 6. bxc3 {[%emt 0:00:05]} d5 {[%emt 0:00:32]} 7. Nf3 {[%emt 0:00:42]} c5 {[%emt 0:00:45]} 8. Bd3 {[%emt 0:00:36]} dxc4 {[%emt 0:02:31]} 9. Bxc4 {[%emt 0:00:06]} Qc7 {[%emt 0:00:11]} 10. Bb3 {[%emt 0:03:06]} b6 {[%emt 0:02:14]} 11. O-O {[%emt 0:01:09]} Bb7 {[%emt 0:02:17]} 12. h3 {[%emt 0:05:16]} Nc6 {[%emt 0:05:59]} 13. Bb2 {[%emt 0:39:20]} Na5 {[%emt 0:00:58]} 14. Bc2 {[%emt 0:01:08]} Nc4 {[%emt 0:04:40]} 15. Bc1 {[%emt 0:02:43]} Rac8 {[%emt 0:02:53]} 16. Bd3 {[%emt 0:01:22]} Bd5 {[%emt 0:13:08]} 17. Qe2 {[%emt 0:01:58]} Nd6 {[%emt 0:07:33]} 18. Ne5 {[%emt 0:03:10]} Be4 {[%emt 0:10:22]} 19. Bd2 {[%emt 0:02:59]} Rfd8 {[%emt 0:08:13]} 20. Rfc1 {[%emt 0:06:02]} Nd7 {[%emt 0:05:14]} 21. Nxd7 {[%emt 0:06:02]} Qxd7 {[%emt 0:00:44]} 22. Bxe4 {[%emt 0:04:06]} Nxe4 {[%emt 0:00:03]} 23. Be1 {[%emt 0:01:01]} Qa4 {[%emt 0:02:30]} 24. Qb2 {[%emt 0:04:24]} Nd6 {[%emt 0:02:54]} 25. Rab1 {[%emt 0:02:11]} Rc6 {[%emt 0:06:19]} 26. dxc5 {[%emt 0:04:12]} Rxc5 {[%emt 0:00:18]} 27. Qb4 {[%emt 0:01:06]} Qc6 {[%emt 0:01:17]} 28. Rd1 {[%emt 0:00:39]} Rc8 {[%emt 0:05:09]} 29. Qf4 {[%emt 0:01:43]} Nc4 {[%emt 0:02:00]} 30. Rd3 {[%emt 0:02:25]} Rd5 {[%emt 0:02:18]} 31. Rbd1 {[%emt 0:00:57]} Rxd3 {[%emt 0:01:22]} 32. Rxd3 {[%emt 0:00:07]} h6 {[%emt 0:00:26]} 33. e4 {[%emt 0:01:08]} Qc7 {[%emt 0:04:16]} 34. Qc1 {[%emt 0:00:54]} Rd8 {[%emt 0:00:43]} 35. Rd4 {[%emt 0:01:46]} e5 {[%emt 0:00:23]} 36. Rd5 {[%emt 0:00:35]} Rxd5 {[%emt 0:00:36]} 37. exd5 {[%emt 0:00:03]} Qd6 {[%emt 0:01:08]} 38. Qd1 {[%emt 0:00:43]} Qxa3 {[%emt 0:00:58]} 39. Qg4 {[%emt 0:00:28]} Nd6 {[%emt 0:04:48]} 40. Bd2 {[%emt 0:00:00]} Kh8 {[%emt 0:00:00]} 41. Qd7 {[%emt 0:05:32]} Qc5 {[%emt 0:07:34]} 42. Qd8+ {[%emt 0:04:24]} Kh7 {[%emt 0:00:20]} 43. Qa8 {[%emt 0:00:05]} Qc7 {[%emt 0:03:20]} 44. Be3 {[%emt 0:06:13]} Qb7 {[%emt 0:03:21]} 45. Qxb7 {[%emt 0:00:32]} Nxb7 {[%emt 0:00:02]} 46. Kf1 {[%emt 0:00:28]} Kg8 {[%emt 0:00:42]} 47. f4 {[%emt 0:03:46]} f6 {[%emt 0:01:37]} 48. fxe5 {[%emt 0:01:46]} fxe5 {[%emt 0:00:53]} 49. Bf2 {[%emt 0:00:16]} Kf7 {[%emt 0:00:24]} 50. Bg3 {[%emt 0:00:05]} Kf6 {[%emt 0:00:11]} 51. Ke2 {[%emt 0:00:05]} b5 {[%emt 0:02:01]} 52. Bh4+ {[%emt 0:04:24]} g5 {[%emt 0:02:36]} 53. Bf2 {[%emt 0:00:05]} a5 {[%emt 0:01:15]} 54. g4 {[%emt 0:01:44]} a4 {[%emt 0:03:29]} 55. Kd3 {[%emt 0:01:25]} Nd6 {[%emt 0:01:12]} 56. Bc5 {[%emt 0:00:50]} Nc4 {[%emt 0:01:15]} 57. Kc2 {[%emt 0:00:18]} e4 {[%emt 0:03:46]} 58. Bd4+ {[%emt 0:00:13]} Ke7 {[%emt 0:00:20]} 59. Bc5+ {[%emt 0:00:13]} Kd7 {[%emt 0:00:26]} 60. Bf8 {[%emt 0:05:22]} a3 {[%emt 0:01:18]} 61. Kb3 {[%emt 0:00:55]} e3 {[%emt 0:00:17]} 62. Bc5 {[%emt 0:00:12]} e2 {[%emt 0:00:22]} 63. Bf2 {[%emt 0:00:04]} Kd6 {[%emt 0:00:31]} 64. h4 {[%emt 0:00:08]} Kxd5 {[%emt 0:00:14]} 0-1

[Event "POL-chT 2 Liga 2019"]
[Site "Poronin"]
[Date "2019.09.13"]
[Round "7.35"]
[White "Krawiec, Grzegorz"]
[Black "Hasterok, Mateusz"]
[Result "0-1"]
[ECO "B45"]
[WhiteElo "1792"]
[BlackElo "1985"]
[Annotator "NA"]
[PlyCount "46"]
[EventDate "2019.09.07"]
[EventType "team-tourn"]
[EventCountry "POL"]
[SourceTitle "playchess.com"]
[Source "ChessBase"]
[SourceQuality "1"]
[TimeControl "40/5400+30:1800+30"]

1. e4 {[%emt 0:00:00]} c5 {[%emt 0:00:00]} 2. Nf3 {[%emt 0:00:00]} Nc6 {[%emt 0:00:00]} 3. d4 {[%emt 0:00:00]} cxd4 {[%emt 0:00:00]} 4. Nxd4 {[%emt 0:00:00]} e6 {[%emt 0:00:00]} 5. Nc3 {[%emt 0:00:19]} Nf6 {[%emt 0:00:00]} 6. g3 {[%emt 0:08:24]} d6 {[%emt 0:01:34]} 7. Bg2 {[%emt 0:00:25]} Bd7 {[%emt 0:00:14]} 8. Ndb5 {[%emt 0:05:51]} Qb8 {[%emt 0:01:38]} 9. Bf4 {[%emt 0:07:09]} Ne5 {[%emt 0:03:24]} 10. O-O {[%emt 0:07:26]} a6 {[%emt 0:01:04]} 11. Nd4 {[%emt 0:11:10]} Be7 {[%emt 0:03:13]} 12. b3 {[%emt 0:02:47]} O-O {[%emt 0:01:51]} 13. a4 {[%emt 0:01:47]} Qc7 {[%emt 0:04:19]} 14. Nce2 {[%emt 0:03:25]} Rac8 {[%emt 0:04:31]} 15. Bc1 {[%emt 0:16:10]} Rfd8 {[%emt 0:06:11]} 16. a5 {[%emt 0:09:25]} Bc6 {[%emt 0:06:11]} 17. Nxc6 {[%emt 0:05:10]} Nxc6 {[%emt 0:00:07]} 18. Bd2 {[%emt 0:00:05]} d5 {[%emt 0:01:23]} 19. exd5 {[%emt 0:03:02]} Nxd5 {[%emt 0:00:06]} 20. c4 {[%emt 0:00:20]} Ndb4 {[%emt 0:01:44]} 21. Bxc6 {[%emt 0:00:19]} Qxc6 {[%emt 0:01:17]} 22. Qc1 {[%emt 0:01:11]} Nd3 {[%emt 0:00:49]} 23. Qc2 {[%emt 0:00:32]} Ne5 {[%emt 0:00:16]} 0-1

[Event "POL-chT 2 Liga 2019"]
[Site "Poronin"]
[Date "2019.09.13"]
[Round "7.36"]
[White "Poznanska, Katarzyna"]
[Black "Karykowska, Anna"]
[Result "1/2-1/2"]
[ECO "B40"]
[WhiteElo "2082"]
[BlackElo "1895"]
[Annotator "NA"]
[PlyCount "41"]
[EventDate "2019.09.07"]
[EventType "team-tourn"]
[EventCountry "POL"]
[SourceTitle "playchess.com"]
[Source "ChessBase"]
[SourceQuality "1"]
[TimeControl "40/5400+30:1800+30"]

1. e4 {[%emt 0:00:00]} c5 {[%emt 0:00:00]} 2. Nf3 {[%emt 0:00:00]} e6 {[%emt 0:00:00]} 3. d4 {[%emt 0:00:07]} cxd4 {[%emt 0:00:00]} 4. Nxd4 {[%emt 0:00:04]} Bc5 {[%emt 0:00:22]} 5. Nb3 {[%emt 0:01:24]} Bb6 {[%emt 0:00:05]} 6. c4 {[%emt 0:01:51]} Ne7 {[%emt 0:00:38]} 7. Nc3 {[%emt 0:00:32]} O-O {[%emt 0:00:48]} 8. Be2 {[%emt 0:02:37]} f5 {[%emt 0:01:21]} 9. O-O {[%emt 0:03:25]} Nbc6 {[%emt 0:01:29]} 10. c5 {[%emt 0:11:21]} Bc7 {[%emt 0:01:24]} 11. f4 {[%emt 0:09:16]} fxe4 {[%emt 0:03:32]} 12. Nxe4 {[%emt 0:09:01]} b6 {[%emt 0:03:23]} 13. Kh1 {[%emt 0:16:38]} Ng6 {[%emt 0:07:01]} 14. Nd6 {[%emt 0:02:42]} bxc5 {[%emt 0:06:40]} 15. Nxc5 {[%emt 0:01:02]} Qe7 {[%emt 0:02:39]} 16. Nce4 {[%emt 0:00:02]} a5 {[%emt 0:06:28]} 17. f5 {[%emt 0:15:03]} exf5 {[%emt 0:06:04]} 18. Qd5+ {[%emt 0:08:25]} Kh8 {[%emt 0:03:58]} 19. Nxf5 {[%emt 0:01:00]} Qe5 {[%emt 0:04:13]} 20. Qxe5 {[%emt 0:00:02]} Ngxe5 {[%emt 0:02:08]} 21. Nfd6 1/2-1/2

[Event "POL-chT 2 Liga 2019"]
[Site "Poronin"]
[Date "2019.09.13"]
[Round "7.37"]
[White "Snihur, Piotr"]
[Black "Wandzik, Wojciech"]
[Result "0-1"]
[ECO "E46"]
[WhiteElo "2232"]
[BlackElo "2409"]
[Annotator "NA"]
[PlyCount "74"]
[EventDate "2019.09.07"]
[EventType "team-tourn"]
[EventCountry "POL"]
[SourceTitle "playchess.com"]
[Source "ChessBase"]
[SourceQuality "1"]
[TimeControl "40/5400+30:1800+30"]

1. d4 {[%emt 0:00:49]} Nf6 {[%emt 0:00:00]} 2. c4 {[%emt 0:00:13]} e6 {[%emt 0:00:00]} 3. Nc3 {[%emt 0:00:19]} Bb4 {[%emt 0:01:08]} 4. e3 {[%emt 0:00:17]} O-O {[%emt 0:00:40]} 5. Nge2 {[%emt 0:00:26]} d5 {[%emt 0:10:37]} 6. a3 {[%emt 0:00:50]} Bxc3+ {[%emt 0:00:16]} 7. Nxc3 {[%emt 0:00:13]} b6 {[%emt 0:00:43]} 8. Bd3 {[%emt 0:01:59]} Ba6 {[%emt 0:04:08]} 9. b3 {[%emt 0:03:13]} c5 {[%emt 0:01:59]} 10. dxc5 {[%emt 0:09:24]} dxc4 {[%emt 0:07:08]} 11. bxc4 {[%emt 0:00:58]} Nbd7 {[%emt 0:07:02]} 12. O-O {[%emt 0:03:52]} Nxc5 {[%emt 0:02:31]} 13. Be2 {[%emt 0:01:07]} Qxd1 {[%emt 0:05:50]} 14. Rxd1 {[%emt 0:00:11]} Nfe4 {[%emt 0:00:28]} 15. Nxe4 {[%emt 0:08:37]} Nxe4 {[%emt 0:00:07]} 16. Bb2 {[%emt 0:00:09]} Rac8 {[%emt 0:07:09]} 17. Rd7 {[%emt 0:23:19]} Bxc4 {[%emt 0:01:25]} 18. Bxc4 {[%emt 0:07:31]} Rxc4 {[%emt 0:00:06]} 19. f3 {[%emt 0:00:06]} Nc5 {[%emt 0:08:41]} 20. Rxa7 {[%emt 0:01:06]} Rd8 {[%emt 0:00:04]} 21. Bd4 {[%emt 0:02:38]} h5 {[%emt 0:00:20]} 22. Ra2 {[%emt 0:03:52]} h4 {[%emt 0:07:07]} 23. Bxc5 {[%emt 0:02:59]} bxc5 {[%emt 0:09:21]} 24. Kf2 {[%emt 0:01:23]} Rc1 {[%emt 0:00:18]} 25. Rb7 {[%emt 0:04:35]} Rdd1 {[%emt 0:00:33]} 26. e4 {[%emt 0:05:35]} Rf1+ {[%emt 0:09:50]} 27. Ke2 {[%emt 0:03:59]} Rce1+ {[%emt 0:00:14]} 28. Kd3 {[%emt 0:05:09]} h3 {[%emt 0:00:06]} 29. gxh3 {[%emt 0:00:33]} Rxf3+ {[%emt 0:00:10]} 30. Kc4 {[%emt 0:00:03]} Rxe4+ {[%emt 0:05:03]} 31. Kb5 {[%emt 0:04:42]} Rb3+ {[%emt 0:00:08]} 32. Kc6 {[%emt 0:00:04]} c4 {[%emt 0:00:04]} 33. Rxb3 {[%emt 0:00:30]} cxb3 {[%emt 0:00:06]} 34. Rb2 {[%emt 0:00:06]} f5 {[%emt 0:00:36]} 35. Kb5 {[%emt 0:02:59]} f4 {[%emt 0:00:25]} 36. a4 {[%emt 0:00:02]} f3 {[%emt 0:01:05]} 37. Rxb3 {[%emt 0:01:00]} f2 {[%emt 0:00:10]} 0-1

[Event "POL-chT 2 Liga 2019"]
[Site "Poronin"]
[Date "2019.09.13"]
[Round "7.38"]
[White "Lizak, Jakub"]
[Black "Szadkowski, Kamil"]
[Result "1/2-1/2"]
[ECO "B52"]
[WhiteElo "2236"]
[BlackElo "2245"]
[Annotator "NA"]
[PlyCount "33"]
[EventDate "2019.09.07"]
[EventType "team-tourn"]
[EventCountry "POL"]
[SourceTitle "playchess.com"]
[Source "ChessBase"]
[SourceQuality "1"]
[TimeControl "40/5400+30:1800+30"]

1. e4 {[%emt 0:00:00]} c5 {[%emt 0:00:00]} 2. Nf3 {[%emt 0:00:00]} d6 {[%emt 0:00:08]} 3. Bb5+ {[%emt 0:00:00]} Bd7 {[%emt 0:00:29]} 4. c4 {[%emt 0:04:20]} g6 {[%emt 0:00:57]} 5. Nc3 {[%emt 0:00:09]} Bg7 {[%emt 0:00:47]} 6. d4 {[%emt 0:00:08]} cxd4 {[%emt 0:00:33]} 7. Nxd4 {[%emt 0:00:04]} Nf6 {[%emt 0:01:00]} 8. h3 {[%emt 0:00:08]} O-O {[%emt 0:01:53]} 9. O-O {[%emt 0:00:47]} a6 {[%emt 0:01:11]} 10. Bxd7 {[%emt 0:00:18]} Nbxd7 {[%emt 0:00:57]} 11. Be3 {[%emt 0:02:16]} Rc8 {[%emt 0:06:26]} 12. Qb3 {[%emt 0:08:28]} Nc5 {[%emt 0:11:35]} 13. Qc2 {[%emt 0:00:58]} Ncd7 {[%emt 0:07:05]} 14. b3 {[%emt 0:06:02]} Qc7 {[%emt 0:06:28]} 15. a4 {[%emt 0:03:18]} b6 {[%emt 0:03:19]} 16. Rfe1 {[%emt 0:03:08]} Qb7 {[%emt 0:02:18]} 17. Rad1 {[%emt 0:01:59]} 1/2-1/2

[Event "POL-chT 2 Liga 2019"]
[Site "Poronin"]
[Date "2019.09.13"]
[Round "7.39"]
[White "Szadkowski, Krzysztof"]
[Black "Gola, Karol"]
[Result "1-0"]
[ECO "A13"]
[WhiteElo "2138"]
[BlackElo "2203"]
[Annotator "NA"]
[PlyCount "51"]
[EventDate "2019.09.07"]
[EventType "team-tourn"]
[EventCountry "POL"]
[SourceTitle "playchess.com"]
[Source "ChessBase"]
[SourceQuality "1"]
[TimeControl "40/5400+30:1800+30"]

1. Nf3 {[%emt 0:00:00]} d5 {[%emt 0:00:00]} 2. c4 {[%emt 0:00:00]} e6 {[%emt 0:03:01]} 3. g3 {[%emt 0:01:44]} Nf6 {[%emt 0:03:29]} 4. Bg2 {[%emt 0:00:12]} Bd6 {[%emt 0:01:17]} 5. O-O {[%emt 0:01:00]} c6 {[%emt 0:02:58]} 6. Qc2 {[%emt 0:00:46]} e5 {[%emt 0:06:06]} 7. e3 {[%emt 0:07:12]} O-O {[%emt 0:06:14]} 8. b3 {[%emt 0:19:06]} e4 {[%emt 0:21:06]} 9. Ne1 {[%emt 0:04:31]} Bf5 {[%emt 0:22:52]} 10. Bb2 {[%emt 0:09:39]} Nbd7 {[%emt 0:01:57]} 11. f3 {[%emt 0:01:34]} Bg6 {[%emt 0:04:01]} 12. f4 {[%emt 0:04:00]} Bf5 {[%emt 0:00:17]} 13. Nc3 {[%emt 0:02:48]} Re8 {[%emt 0:13:50]} 14. cxd5 {[%emt 0:13:25]} cxd5 {[%emt 0:05:47]} 15. Nb5 {[%emt 0:02:01]} Rc8 {[%emt 0:00:50]} 16. Qxc8 {[%emt 0:00:13]} Qxc8 {[%emt 0:00:06]} 17. Nxd6 {[%emt 0:00:05]} Qc6 {[%emt 0:02:03]} 18. Nxe8 {[%emt 0:00:43]} Nxe8 {[%emt 0:00:08]} 19. Rc1 {[%emt 0:02:09]} Qe6 {[%emt 0:01:59]} 20. Nc2 {[%emt 0:04:55]} Nd6 {[%emt 0:01:15]} 21. Nd4 {[%emt 0:00:14]} Qg6 {[%emt 0:00:37]} 22. Ba3 {[%emt 0:00:26]} Bg4 {[%emt 0:00:26]} 23. f5 {[%emt 0:06:13]} Qf6 {[%emt 0:00:03]} 24. Nb5 {[%emt 0:00:36]} Ne8 {[%emt 0:00:27]} 25. Rc8 {[%emt 0:00:06]} Qe5 {[%emt 0:00:07]} 26. Bd6 {[%emt 0:00:06]} 1-0

[Event "POL-chT 2 Liga 2019"]
[Site "Poronin"]
[Date "2019.09.13"]
[Round "7.40"]
[White "Szolc, Grzegorz"]
[Black "Leskiewicz, Ignacy"]
[Result "1/2-1/2"]
[ECO "A45"]
[WhiteElo "2038"]
[BlackElo "2116"]
[Annotator "NA"]
[PlyCount "98"]
[EventDate "2019.09.07"]
[EventType "team-tourn"]
[EventCountry "POL"]
[SourceTitle "playchess.com"]
[Source "ChessBase"]
[SourceQuality "1"]
[TimeControl "40/5400+30:1800+30"]

1. d4 {[%emt 0:00:00]} Nf6 {[%emt 0:00:00]} 2. Bf4 {[%emt 0:00:00]} g6 {[%emt 0:00:00]} 3. Nc3 {[%emt 0:00:03]} d5 {[%emt 0:00:03]} 4. e3 {[%emt 0:00:31]} Bg7 {[%emt 0:00:17]} 5. h4 {[%emt 0:00:23]} h5 {[%emt 0:00:11]} 6. Nb5 {[%emt 0:01:18]} Na6 {[%emt 0:00:32]} 7. Nf3 {[%emt 0:00:53]} c6 {[%emt 0:08:51]} 8. Nc3 {[%emt 0:00:29]} Nb8 {[%emt 0:02:42]} 9. Bd3 {[%emt 0:02:50]} Nbd7 {[%emt 0:13:15]} 10. Ne5 {[%emt 0:05:17]} O-O {[%emt 0:06:33]} 11. Ne2 {[%emt 0:19:41]} Qb6 {[%emt 0:21:03]} 12. b3 {[%emt 0:15:44]} c5 {[%emt 0:08:15]} 13. c3 {[%emt 0:03:45]} Nxe5 {[%emt 0:04:21]} 14. Bxe5 {[%emt 0:00:48]} Ng4 {[%emt 0:03:51]} 15. Bxg7 {[%emt 0:02:27]} Kxg7 {[%emt 0:01:16]} 16. Qd2 {[%emt 0:12:09]} Qf6 {[%emt 0:09:20]} 17. f3 {[%emt 0:05:58]} Nh6 {[%emt 0:00:05]} 18. O-O-O {[%emt 0:02:46]} cxd4 {[%emt 0:01:29]} 19. exd4 {[%emt 0:09:32]} a5 {[%emt 0:10:25]} 20. Rdf1 {[%emt 0:04:30]} Qd6 {[%emt 0:01:00]} 21. Kb2 {[%emt 0:03:49]} b5 {[%emt 0:03:09]} 22. g4 {[%emt 0:04:44]} b4 {[%emt 0:00:19]} 23. gxh5 {[%emt 0:00:47]} bxc3+ {[%emt 0:01:46]} 24. Nxc3 {[%emt 0:00:18]} a4 {[%emt 0:00:35]} 25. Nb5 {[%emt 0:00:46]} Qb6 {[%emt 0:01:11]} 26. Rfg1 {[%emt 0:02:53]} axb3 {[%emt 0:00:23]} 27. axb3 {[%emt 0:00:08]} Bf5 {[%emt 0:01:26]} 28. hxg6 {[%emt 0:00:42]} f6 {[%emt 0:00:41]} 29. Re1 {[%emt 0:00:32]} Rfe8 {[%emt 0:00:35]} 30. h5 {[%emt 0:00:38]} Bxd3 {[%emt 0:00:46]} 31. Qxd3 {[%emt 0:00:10]} Rab8 {[%emt 0:00:31]} 32. Na3 {[%emt 0:00:28]} Qd6 {[%emt 0:00:33]} 33. Re2 {[%emt 0:00:54]} e6 {[%emt 0:00:31]} 34. Rhe1 {[%emt 0:00:11]} Nf5 {[%emt 0:00:29]} 35. Rc2 {[%emt 0:00:47]} Re7 {[%emt 0:00:20]} 36. Rec1 {[%emt 0:00:34]} Reb7 {[%emt 0:00:33]} 37. Rc3 {[%emt 0:00:33]} Qh2+ {[%emt 0:00:37]} 38. Qc2 {[%emt 0:00:29]} Qxh5 {[%emt 0:00:30]} 39. Rc7+ {[%emt 0:00:30]} Ne7 {[%emt 0:00:29]} 40. Qc5 {[%emt 0:00:00]} Rxb3+ {[%emt 0:00:00]} 41. Ka1 {[%emt 0:02:40]} Qxf3 {[%emt 0:05:52]} 42. Qxe7+ {[%emt 0:01:09]} Kh6 {[%emt 0:00:15]} 43. Qh7+ {[%emt 0:07:40]} Kg5 44. Rg1+ {[%emt 0:00:54]} Kf4 {[%emt 0:00:32]} 45. Qh4+ {[%emt 0:08:55]} Ke3 {[%emt 0:01:09]} 46. Nc2+ {[%emt 0:01:53]} Kd3 {[%emt 0:07:22]} 47. Ne1+ {[%emt 0:01:26]} Ke3 {[%emt 0:00:19]} 48. Nc2+ {[%emt 0:06:25]} Kd3 {[%emt 0:01:42]} 49. Ne1+ {[%emt 0:00:05]} Ke3 {[%emt 0:00:08]} 1/2-1/2